Cogmind - Beta 14 @@@ ROGUE MODE // 2025.04.30 @ 15:52:17 Player: Desos Result: Destroyed by G-34 Mercenary with Small Laser Performance ------------- Evolutions (0) 0 Regions Visited (1) 200 Robots Destroyed (23) 115 Value Destroyed (538) 538 Prototype IDs (0) 0 Alien Tech Used (0) 0 Bonus (0) 0 TOTAL SCORE: 853 Bonus ------- None Cogmind --------- Core Integrity 0/250 Matter 300/300 Energy 247/250 System Corruption 0% Temperature Cool (89) Movement Rolling (105) Ox1 Location -10/Materials Parts ------- > --- POWER (1) -------- Ion Engine > --- PROPULSION (2) --- Wheel Compact Wheel > --- UTILITY (2) ------ High-capacity Storage Unit Structural Scanner > --- WEAPON (2) ------- Beam Cannon > --- INVENTORY (20) --- Ion Engine Ion Engine Light Nuclear Core Light Treads Wheel Wheel Heat Sink Improved Heat Sink Improved Heat Sink Large Battery (200) Medium Matter Pod (100) Medium Matter Pod (100) Signal Interpreter ECM Suite Utility Shielding Weapon Shielding Small Laser Grenade Launcher Grenade Launcher Grenade Launcher Peak State ------------ > --- POWER ------------ Ion Engine > --- PROPULSION ------- Wheel Compact Wheel > --- UTILITY ---------- Improved Heat Sink High-capacity Storage Unit > --- WEAPON ----------- Beam Cannon Light Assault Rifle > --- INVENTORY -------- Light Nuclear Core Wheel Wheel Heat Sink Improved Heat Sink Large Battery Medium Matter Pod Medium Matter Pod Structural Scanner Signal Interpreter ECM Suite Weapon Shielding Small Laser Grenade Launcher Grenade Launcher Grenade Launcher [Rating: 11] Favorites ----------- Power Ion Engine Engine Ion Engine Propulsion Compact Wheel Treads Light Treads Wheel Compact Wheel Utility High-capacity Storage Unit Device Improved Heat Sink Storage High-capacity Storage Unit Weapon Light Assault Rifle Energy Gun EM Pulse Gun Energy Cannon Beam Cannon Ballistic Gun Light Assault Rifle Build | -11 -10 ------- Run | Yrd Mat Slots Evolved . | . . Power . | . . Propulsion . | . . Utility . | . . Weapon . | . . Parts Attached 38 | 11 27 Power 5 | 1 4 Engine 5 | 1 4 Core . | . . Reactor . | . . Propulsion 22 | 7 15 Treads 10 | 3 7 Leg . | . . Wheel 12 | 4 8 Hover . | . . Flight . | . . Utility 6 | 1 5 Device 4 | . 4 Storage 2 | 1 1 Processor . | . . Hackware . | . . Protection . | . . Artifact . | . . Weapon 5 | 2 3 Energy Gun 1 | 1 . Energy Cannon 1 | . 1 Ballistic Gun 3 | 1 2 Ballistic Cannon . | . . Launcher . | . . Special Weapon . | . . Impact Weapon . | . . Slashing Weapon . | . . Piercing Weapon . | . . Special Melee Weapon . | . . Unidentified Prototypes . | . . Parts Lost 7 | . 7 Power 2 | . 2 Propulsion 2 | . 2 Utility 1 | . 1 Weapon 2 | . 2 Highest Loss Streak 2 | . 2 To Critical Strikes . | . . Average Slot Usage (%) 97 | . 97 Engine 13 | . 13 Treads 9 | . 9 Wheel 17 | . 17 Device 13 | . 13 Storage 14 | . 14 Energy Cannon 9 | . 9 Ballistic Gun 17 | . 17 Peak Build Rating 11 | 6 11 Average Rating 8 | 2 8 On Entrance 3 | . 6 Naked Turns . | . . Heaviest Build 50 | 11 50 Greatest Support 40 | 20 40 Greatest Overweight (x) 3 | 2 3 Average Overweight (x) 1 | . 1 Largest Inventory Capacity 20 | 8 20 Average Capacity 15 | 7 15 Most Carried 20 | 7 20 Average Carried 10 | 5 10 Final Capacity 20 | 8 20 Final Carried 20 | 3 20 Class Distribution -------------------- 100% | Mutant Dominant Class ---------------- Mutant | -10/Materials Resources | -11 -10 ----------- Run | Yrd Mat Matter Collected 854 | 255 599 Remotely . | . . Salvage Created 708 | . 708 Parts 45 | . 45 Haulers Intercepted 2 | . 2 Recyclers Shooed . | . . Parts Field Recycled . | . . Retrieved Matter . | . . Parts Self-Destructed . | . . Prevented . | . . Kills | -11 -10 ------- Run | Yrd Mat Combat Hostiles Destroyed 17 | . 17 Guns 10 | . 10 Cannons 7 | . 7 Classes Destroyed 5 | . 5 Hauler 2 | . 2 Operator 1 | . 1 Watcher 3 | . 3 Swarmer 6 | . 6 Grunt 11 | . 11 Best Kill Streak 4 | . 4 Combat Bots Only 4 | . 4 Max Kills in Single Turn 1 | . 1 Gunslinging . | . . Exploded . | . . Melee . | . . Uniques/NPCs Destroyed . | . . Combat | -11 -10 -------- Run | Yrd Mat Hostile Shots Fired 127 | . 127 Missed 28 | . 28 Damage Taken 1028 | . 1028 Core 252 | . 252 Absorbed by Shields . | . . Core Remaining (%) 100 | 100 . Volleys Fired 79 | . 79 Largest 2 | . 2 Hottest 80 | . 80 Shots Fired 150 | . 150 Gun 117 | . 117 Cannon 33 | . 33 Launcher . | . . Special . | . . Kinetic 104 | . 104 Thermal 33 | . 33 Explosive . | . . Electromagnetic 13 | . 13 Robot Hit Streak 12 | . 12 Robot Miss Streak 5 | . 5 Penetration Max . | . . Secondary Targets . | . . Shots Hit Robots 85 | . 85 Core Hits 38 | . 38 Critical Kills 1 | . 1 Critical Parts Destroyed . | . . Critical Strikes 1 | . 1 Destroy 1 | . 1 Melee Attacks . | . . Impact . | . . Slashing . | . . Piercing . | . . Sneak Attacks . | . . Combat Hostiles . | . . Follow-up Attacks . | . . Damage Inflicted 909 | . 909 Guns 490 | . 490 Cannons 419 | . 419 Explosions . | . . Melee . | . . Ramming . | . . Kinetic 457 | . 457 Thermal 419 | . 419 Explosive . | . . Electromagnetic 33 | . 33 Impact . | . . Slashing . | . . Piercing . | . . Highest Corruption . | . . Average Corruption . | . . Corruption Purged . | . . Corruption Blocked . | . . Overload Shots . | . . Overflow Damage . | . . Projectiles . | . . Explosions . | . . Melee . | . . Knockbacks . | . . Impact . | . . Kinetic . | . . Secondary . | . . Self-Inflicted Damage . | . . Shots . | . . Rammed . | . . Targets Rammed . | . . Kicked . | . . Crushed . | . . Highest Temperature 185 | . 185 Average Temperature 29 | . 29 Received Heat Transfer 396 | . 396 Siege Activations . | . . Robots Corrupted . | . . Combat Hostiles . | . . Parts Fried . | . . Impact Corruptions . | . . Robots Melted . | . . Combat Hostiles . | . . Parts Melted 1 | . 1 Heat Transferred 888 | . 888 Parts Sabotaged . | . . Parts Stolen . | . . Parts Stripped . | . . Power Chain Reactions . | . . Alert | -11 -10 ------- Run | Yrd Mat Peak Influence 223 | . 223 Initial . | . . Average 48 | . 49 Maximum Alert Level 1 | . 1 Low Security (%) 96 | 100 96 Level 1 3 | . 3 Level 2 . | . . Level 3 . | . . Level 4 . | . . Level 5 . | . . High Security . | . . Max Security . | . . Squads Dispatched 3 | . 3 Investigation 2 | . 2 Extermination . | . . Reinforcement 1 | . 1 Assault . | . . Garrison . | . . Intercept . | . . Searches Triggered . | . . Construction Impeded . | . . Haulers Reinforced . | . . Active Scanning Responses . | . . Cargo Convoy Interrupts . | . . Stealth | -11 -10 --------- Run | Yrd Mat Distress Signals 3 | . 3 Communications Jammed . | . . Distress Signals . | . . Times Spotted 52 | . 52 Peak Tracking Total 8 | . 8 Tactical Retreats 9 | . 9 Traps | -11 -10 ------- Run | Yrd Mat Traps Triggered . | . . Indirectly . | . . Trap Hack Attempts . | . . Triggered . | . . Disarmed . | . . Reprogrammed 2 | . 2 Reused 1 | . 1 Traps Extracted . | . . Installed . | . . Triggered 1 | . 1 Machines | -11 -10 ---------- Run | Yrd Mat Machines Disabled 1 | . 1 Max in Single Turn 1 | . 1 Machines Repaired . | . . Machines Dismantled . | . . Machines Sabotaged . | . . Overloaded Fab Kills . | . . Hacking | -11 -10 --------- Run | Yrd Mat Machines Accessed 8 | . 8 Terminals 7 | . 7 Fabricators . | . . Repair Stations . | . . Recycling Units 1 | . 1 Scanalyzers . | . . Garrison Access . | . . Total Hacks 33 | . 33 Successful 21 | . 21 Failed 12 | . 12 Catastrophic 2 | . 2 Database Lockouts . | . . Manual 21 | . 21 Terminals 29 | . 29 Fabricators . | . . Repair Stations . | . . Recycling Units 4 | . 4 Scanalyzers . | . . Garrison Access . | . . Terminal Hacks 7 | . 7 Emergency Access Points 1 | . 1 Locate Traps 1 | . 1 Reprogram Traps 2 | . 2 Registered Components 1 | . 1 Zone Layout 2 | . 2 Fabricator Hacks . | . . Repair Station Hacks . | . . Recycling Unit Hacks 3 | . 3 Report Inventory 2 | . 2 Retrieve Matter 1 | . 1 Scanalyzer . | . . Garrison Access Hacks . | . . Unauthorized Hacks 11 | . 11 Terminals 11 | . 11 Assimilate 3 | . 3 Botnet 7 | . 7 Operators 1 | . 1 Fabricators . | . . Repair Stations . | . . Recycling Units . | . . Scanalyzers . | . . Garrison Access . | . . Data Cores Recovered . | . . Used . | . . Hacking Detections 6 | . 6 Full Trace Events 4 | . 4 Feedback Events . | . . Feedback Blocked . | . . Robot Schematics Acquired . | . . Robots Built . | . . Authchips . | . . Time . | . . Total Robot Build Rating . | . . Part Schematics Acquired . | . . Parts Built . | . . Authchips . | . . Time . | . . Total Part Build Rating . | . . Parts Repaired . | . . Time . | . . Parts Recycled . | . . Recycled Matter . | . . Retrieved Matter 26 | . 26 Retrieved Components . | . . Parts Scanalyzed . | . . Part Schematics Acquired . | . . Parts Damaged . | . . Bothacking | -11 -10 ------------ Run | Yrd Mat Used RIF Installer . | . . Robots Hacked . | . . Non-combat . | . . Combat . | . . Robot Hacks Applied . | . . Relay Couplers Released . | . . Fabnet Peak Effective % . | . . Robots Rewired . | . . Allies Hacked . | . . Hacks Repelled . | . . Allies | -11 -10 -------- Run | Yrd Mat Total Allies 1 | . 1 Largest Group 1 | . 1 Highest-Rated Group 10 | . 10 Highest-Rated Ally 10 | . 10 Total Orders . | . . Ally Attacks . | . . Total Damage . | . . Kills . | . . Allies Corrupted . | . . Allies Melted . | . . Intel | -11 -10 ------- Run | Yrd Mat Robot Analysis Total . | . . Derelict Logs Recovered . | . . Drone Launches . | . . Drone Recoveries . | . . Exploration | -11 -10 ------------- Run | Yrd Mat Turns Passed 3362 | 67 3295 Spaces Moved 2253 | 38 2215 Core 21 | 21 . Treads 415 | 13 402 Legs . | . . Wheels 1817 | 4 1813 Hover . | . . Flight . | . . Fastest Speed 50 | 50 90 Average Speed 122 | 121 122 Slowest Speed 160 | 160 160 Overloaded Moves . | . . Propulsion Burnouts . | . . Robots Hopped . | . . Cave-ins Triggered . | . . Exploration Rate (%) 50 | 3 98 Regions Visited 1 Branch Regions . Pre-discovered Areas . | . . Known Exits Taken . | . . Unknown Exits Taken 1 | 1 . Scrap Searched . | . . Spaces Dug . | . . Terrain Destroyed . | . . Melee . | . . Projectile . | . . AOE . | . . Terrain Rammed . | . . Walls Destroyed . | . . Machines Disabled . | . . Actions | -11 -10 --------- Run | Yrd Mat Total 2711 | 55 2656 Wait 304 | . 304 Move 2252 | 37 2215 Hop . | . . Pick Up 33 | 7 26 Fast Attach 3 | 2 1 Attach 12 | 5 7 Detach . | . . Swap 23 | 4 19 Drop 5 | . 5 Fire 79 | . 79 Melee . | . . Ram . | . . Kick . | . . Crush . | . . Escape Stasis . | . . Rewire . | . . Trap . | . . Miscellaneous . | . . Route ------- -11/Scrapyard -10/Materials (discovered 5 exits: [*Mat x3] / [*Min x2]) History --------- Turn | Location | Event 48 | -11/Scrapyard | Discovered new exit (range 12) 68 | -11/Scrapyard | Entered Materials 261 | -10/Materials | Core integrity fell below 50% 337 | -10/Materials | Build established: Mutant 732 | -10/Materials | Discovered new exit (range 13) 1141 | -10/Materials | Discovered new exit (range 8) 1297 | -10/Materials | Discovered new exit (range 14) 1339 | -10/Materials | Discovered new exit (range 16) 1400 | -10/Materials | Core integrity fell below 20% 1617 | -10/Materials | Discovered new exit (range 11) 3363 | -10/Materials | Destroyed by G-34 Mercenary with Small Laser Last Messages --------------- 02722_ Acquired Utility Shielding. 02759_ K-01 Serf cleans the Neutrino Reactor. 02778_ Acquired Ion Engine. 02782_ Dropped Ion Engine. 02800_ Connecting with Terminal... >>Access(Emergency) Found 2 emergency access doors: (31,57) (24,57) Map updated. 02825_ R-06 Scavenger collects Ion Engine. 02840_ K-01 Serf cleans the Terminal. 03101_ Acquired 20 matter. 03187_ K-01 Serf cleans the Atomic Centrifuge. 03289_ Connecting with Terminal... >>Layout(Zone) Retrieving Zone 2M layout... Downloaded map data. 03350_ K-01 Serf cleans the Fusion Modulator. 03357_ Lgt. Assault Rifle destroyed. Map ----- +----------------------------------------------------+ | | | | | | | | | ??????????????????????###########?????????????#### | | ??????????????????????## !! ##?????????????## | | ??????????????????????## !! ##?????????????## | | ??????????????????????## ! ##?????????????## | | ????????????????######## ##??#########??## | | ?????????############### ################# | | ?????????######### ###+########## ######## | | ?????????## % | | ?????????## < < | | ?????????## % | | ?????????######### ############## % ######## | | ?????????########## ################ ######### | | ?????????## #T ###??????????### ###?????? | | ?????????## ## #########?????## ##???#### | | ?????????## ## ######## ?????## ##???# | | ?????????## ## # ?????## ##???# | | ?????????## ## # ?????## ##???# | | ?????????## ## # ????### ##???# | | ?????????## ######### # ??? ### ##???# | | ?????###### # """ # # ??" ### ##???# | | ?????###### # T """ #gg # ### ######### | | ?????## # # """ @^^^###+##### ######### | | ####### + = +! #^^^ | | ####### # # # | | # # #####k### | | # ############ ####+###########+####### | | """ # # ## ## # ## | | """ # # # # """ """ # * ##^ | | """ + + # # "" """ """ # """##^^^ | | # # / # "T """ """ # %Y"##^ " | | ####### #######+### # "" # """## " | | # ###### ### # # ## " | | # ####################### | | / ###########??????????## | | # ##""|" ""##??########## | | # """ ###### ## "|" " ############## | | # """ ###### ## ##### | | # """ ###### | | # # # < | | ###### # "# """ """ | | ###### """ # T# # # """ """ | | ##?## """ # "# ######### """ """ ## | | ##?## """ # + ## | | ##?## # # ## | | ##?## # # """ """ """ ## | | ##?## # # """ """ """ ## | +----------------------------------------------------+ Best States ------------- Heat Dissipation 39 Energy Generation 10 Energy Capacity 250 Matter Stores 300 Matter Capacity 300 Sight Range 16 Robot Scan Range 14 Terrain Scan Density 10 ECM Strength 1 Evasion (%) 42 Recoil Reduction 2 Item Schematics ----------------- None Robot Schematics ------------------ None Fabricated ------------ Nothing Alien Tech Used ----------------- None Achievements -------------- None Challenges ------------ None Game ------ Seed ExoskeletonSupercompositeBay Manual? 0 Play Time 00:21:44 Cumulative 30.3 hours Start 2025.04.30 @ 15:30:43 End 2025.04.30 @ 15:52:17 Sessions 1 Manual Loads 0 Difficulty Rogue Special Mode None Game No. 57 Rogue 57 Adventurer 0 Explorer 0 Win Type - Total 0 Types 0/0/0/0/0/0/0/0/0 Lore% 16 Gallery% 18 Achievement% 18 Wizard Run 0 Options --------- Layout 0 ASCII 0 Keyboard 0 Movement Mouse Keybinds 1 Fullscreen 2 Font 20/SmallcapsGlow Map View 96x60 Zoom Use 0% Tactical HUD 1 Map Filters NONE Filters NONE Steam 1 RUN: c79514fb-856a-4c63-94a2-00a01e00355c